bitfinex-derivatives/quotes_BTCF0:USTF0_20250703
["timestamp","ask_amount","ask_price","bid_price","bid_amount"]
[1751551085743,0.1808013,110570.0,110560.0,0.02652375]
[1751551085946,1.92435988,110570.0,110560.0,0.07]
[1751551086147,1.92435988,110570.0,110560.0,0.1808177]
[1751551086148,2.01015598,110570.0,110560.0,0.1808177]
[1751551086345,2.01015598,110570.0,110560.0,0.01]
[1751551086544,1.20820326,110570.0,110560.0,0.1808177]
[1751551086747,0.90611936,110570.0,110560.0,0.1808177]
[1751551087047,1.69325338,110570.0,110560.0,0.4908177]
[1751551087244,1.69325338,110570.0,110560.0,0.1908177]
[1751551087448,1.69325338,110570.0,110550.0,0.754036]
[1751551087449,0.1808177,110560.0,110550.0,0.754036]
[1751551087652,0.65632368,110560.0,110550.0,0.541236]
[1751551088048,0.65632368,110560.0,110540.0,0.64991338]
[1751551088049,0.180834,110550.0,110540.0,0.26765548]
[1751551088350,1.61633998,110550.0,110540.0,0.50244488]
[1751551088841,1.228634,110550.0,110540.0,0.50244488]
[1751551089040,1.61633998,110550.0,110540.0,0.50244488]
[1751551089243,0.51770598,110550.0,110540.0,0.50244488]
[1751551089551,0.9176,110550.0,110540.0,0.50244488]
[1751551089753,1.1402341,110550.0,110540.0,0.55925434]
[1751551089952,0.2216341,110550.0,110540.0,0.55925434]
[1751551090553,0.2216341,110550.0,110540.0,0.56125434]
[1751551090853,1.1390741,110550.0,110540.0,0.56425434]
[1751551091049,1.1802741,110550.0,110540.0,0.56425434]
[1751551091352,0.2628341,110550.0,110540.0,0.56425434]
[1751551091552,1.1801941,110550.0,110540.0,0.56425434]
[1751551092450,1.1801941,110550.0,110540.0,0.52125434]
[1751551092851,1.00036,110550.0,110540.0,0.52125434]
[1751551093056,1.4417471,110560.0,110550.0,0.1808341]
[1751551093247,1.5305522,110560.0,110550.0,0.50864356]
[1751551093453,1.95975818,110560.0,110550.0,0.46464356]
[1751551093953,1.5720522,110560.0,110550.0,0.46464356]
[1751551094157,1.4814778,110560.0,110550.0,0.46464356]
[1751551094958,1.4814778,110560.0,110550.0,0.50674356]
[1751551095159,1.4814778,110560.0,110550.0,0.46464356]
[1751551095551,0.96024,110560.0,110550.0,0.46464356]
[1751551095752,1.1410578,110560.0,110550.0,0.50674356]
[1751551097650,1.1833578,110560.0,110550.0,0.50674356]
[1751551097851,1.1833578,110560.0,110550.0,0.53327761]
[1751551100151,1.57106378,110560.0,110550.0,0.46464356]
[1751551102359,1.25834,110560.0,110550.0,0.46464356]
[1751551102553,1.4391578,110560.0,110550.0,0.50704356]
[1751551103152,0.2667178,110560.0,110550.0,0.46464356]
[1751551103357,1.1822778,110560.0,110550.0,0.46464356]
[1751551104352,0.2667178,110560.0,110550.0,0.46464356]
[1751551104550,0.1808341,110550.0,110540.0,0.02653405]
[1751551104757,0.1808505,110540.0,110530.0,0.06191279]
[1751551104956,0.1808668,110530.0,110520.0,0.05048692]
[1751551105155,2.11837278,110530.0,110520.0,0.01510818]
[1751551105356,2.29932478,110530.0,110520.0,0.01510818]
[1751551105762,2.29732478,110530.0,110520.0,0.01510818]
[1751551105961,2.29732478,110530.0,110520.0,0.01710818]
[1751551106456,2.29732478,110530.0,110510.0,0.03718845]
[1751551106457,0.1808832,110520.0,110510.0,0.03718845]
[1751551106765,1.52570918,110520.0,110510.0,0.46270931]
[1751551106963,1.52570918,110520.0,110510.0,0.00180971]
[1751551107661,1.92227835,110520.0,110510.0,0.00180971]
[1751551107866,1.70667718,110520.0,110510.0,0.48270931]
[1751551108167,1.74887718,110520.0,110510.0,0.00180971]
[1751551108356,1.74887718,110520.0,110510.0,0.05180971]
[1751551108861,1.56890918,110520.0,110510.0,0.05180971]
[1751551109165,1.56890918,110520.0,110510.0,0.42270921]
[1751551109666,1.61290918,110520.0,110510.0,0.24180971]
[1751551110267,1.86950918,110520.0,110510.0,0.24180971]
[1751551111564,1.4802032,110520.0,110510.0,0.42270921]
[1751551111874,1.86790918,110520.0,110510.0,0.24180971]
[1751551112067,1.86790918,110520.0,110510.0,0.42270921]
[1751551112466,1.86770918,110520.0,110510.0,0.42270921]
[1751551114072,1.86770918,110520.0,110510.0,0.24180971]
[1751551114269,1.86770918,110520.0,110510.0,0.42270921]
[1751551114671,1.4800032,110520.0,110510.0,0.42270921]
[1751551115070,0.3102832,110520.0,110510.0,0.42270921]
[1751551115377,0.001,110520.0,110510.0,1.12041519]
[1751551115577,0.001,110520.0,110510.0,1.28149393]
[1751551116666,0.001,110520.0,110510.0,1.26025424]
[1751551116874,0.9299029,110530.0,110520.0,0.1808832]
[1751551117177,1.1107697,110530.0,110520.0,0.54802221]
[1751551119379,1.76694768,110530.0,110520.0,0.02413901]
[1751551119569,0.1808831,110520.0,110510.0,0.00180971]
[1751551119881,2.16222908,110520.0,110510.0,0.01584692]
[1751551120075,2.34319708,110520.0,110510.0,0.01584692]
[1751551120975,2.34319708,110520.0,110510.0,0.01784692]
[1751551121180,2.73090306,110520.0,110510.0,0.01784692]
[1751551122379,2.34319708,110520.0,110510.0,0.01784692]
[1751551122583,3.25591708,110520.0,110510.0,0.01784692]
[1751551123082,3.25591708,110520.0,110510.0,0.01584692]
[1751551123684,2.08767708,110520.0,110510.0,0.01584692]
[1751551123880,2.8678911,110520.0,110510.0,0.01584692]
[1751551124086,3.25559708,110520.0,110510.0,0.01584692]
[1751551124479,3.64330306,110520.0,110510.0,0.01584692]
[1751551124680,3.64330306,110520.0,110510.0,0.00180971]
[1751551124882,3.53145196,110520.0,110510.0,0.01414332]
[1751551125082,0.1809323,110490.0,110480.0,8e-08]
[1751551125279,0.180965,110470.0,110460.0,0.05306811]
[1751551125585,2.0101118,110470.0,110460.0,1e-08]
[1751551125892,0.1810142,110440.0,110430.0,0.00704429]
[1751551126093,0.1810142,110440.0,110390.0,0.3598015]
[1751551126094,0.1810797,110400.0,110390.0,0.3598015]
[1751551126284,0.0905285,110420.0,110410.0,0.1810633]
[1751551126476,1.61573108,110420.0,110410.0,0.4510633]
[1751551126676,1.29954706,110420.0,110410.0,0.4510633]
[1751551127187,0.316884,110410.0,110400.0,0.02]
[1751551127383,0.1810797,110400.0,110390.0,0.66289848]
[1751551127684,1.48070568,110400.0,110390.0,0.08181168]
[1751551127875,1.57040568,110400.0,110390.0,0.32181168]
[1751551128079,1.57040568,110400.0,110390.0,0.00181168]
[1751551128274,2.39487966,110400.0,110390.0,0.01507983]
[1751551128676,0.83965368,110400.0,110390.0,0.01507983]
[1751551128881,2.00717368,110400.0,110390.0,0.32281168]
[1751551129082,2.00717368,110400.0,110390.0,0.33613431]
[1751551129282,2.00717368,110400.0,110390.0,0.32281168]
[1751551129877,2.01217368,110400.0,110390.0,0.32181168]
[1751551130285,2.01217368,110400.0,110390.0,0.00181168]
[1751551130485,2.39987966,110400.0,110390.0,0.00181168]
[1751551130686,2.39987966,110400.0,110390.0,0.01323895]
[1751551130887,0.1811289,110370.0,110360.0,0.34221533]
[1751551131082,0.17229631,110370.0,110360.0,1.03221533]
[1751551131286,1.0926889,110370.0,110360.0,0.70801533]
[1751551131481,1.0926889,110370.0,110360.0,0.12367323]
[1751551131482,1.48039488,110370.0,110360.0,0.12367323]
[1751551131691,1.52749488,110370.0,110360.0,0.11367323]
[1751551131985,1.52749488,110370.0,110360.0,0.57581853]
[1751551132490,0.56883488,110370.0,110360.0,0.57781853]
[1751551132692,0.56883488,110370.0,110360.0,0.67091853]
[1751551132693,1.0927289,110370.0,110360.0,0.67091853]
[1751551133179,1.48043488,110370.0,110360.0,0.11667323]
[1751551133383,1.52753488,110370.0,110360.0,0.42467323]
[1751551133582,1.52753488,110370.0,110360.0,0.42367323]
[1751551133791,1.52753488,110370.0,110360.0,0.17367323]
[1751551133981,1.57313488,110370.0,110360.0,0.42367323]
[1751551134883,1.57313488,110370.0,110360.0,0.60481853]
[1751551135082,1.57313488,110370.0,110360.0,0.42367323]
[1751551135888,1.4410689,110370.0,110360.0,0.42367323]
[1751551136089,1.82877488,110370.0,110360.0,0.42367323]
[1751551137587,0.66153488,110370.0,110360.0,0.60481853]
[1751551137891,0.28798574,110380.0,110370.0,0.1811289]
[1751551138089,1.19922574,110380.0,110370.0,0.4156]
[1751551138290,1.19922574,110380.0,110370.0,0.5967289]
[1751551138291,1.58693172,110380.0,110370.0,0.5967289]
[1751551139097,1.58793172,110380.0,110370.0,0.5967289]
[1751551139486,1.58993172,110380.0,110370.0,0.5967289]
[1751551139687,1.58993172,110380.0,110370.0,0.4156]
[1751551139883,1.67993172,110380.0,110370.0,0.4156]
[1751551140488,0.1811289,110370.0,110360.0,0.11367323]
[1751551140683,0.2700289,110370.0,110360.0,0.41367323]
[1751551140888,1.82445488,110370.0,110360.0,0.41367323]
[1751551143193,1.82445488,110370.0,110360.0,0.11367323]
[1751551143395,1.82445488,110370.0,110360.0,0.39367323]
[1751551145198,1.82445488,110370.0,110360.0,0.57481853]
[1751551145395,1.0917289,110370.0,110360.0,0.28772187]
[1751551145585,1.52533488,110370.0,110360.0,0.28772187]
[1751551145789,1.57233488,110370.0,110360.0,0.46886717]
[1751551146092,1.57233488,110370.0,110360.0,0.28772187]
[1751551146398,1.57233488,110370.0,110360.0,0.46886717]
[1751551146989,1.57233488,110370.0,110360.0,0.27367323]
[1751551147190,1.57233488,110370.0,110360.0,0.45481863]
[1751551149093,1.57233488,110370.0,110360.0,0.49861863]
[1751551150598,1.57233488,110370.0,110360.0,0.31747323]
[1751551150803,1.58855436,110370.0,110360.0,0.11367323]
[1751551151296,0.67795436,110370.0,110360.0,0.29481853]
[1751551151496,1.58759436,110370.0,110360.0,0.43367323]
[1751551151696,1.58759436,110370.0,110360.0,0.61481853]
[1751551151892,1.58759436,110370.0,110360.0,0.43367323]
[1751551152200,1.58759436,110370.0,110360.0,0.62894282]
[1751551152201,1.36134838,110370.0,110360.0,0.62894282]
[1751551152388,1.74905436,110370.0,110360.0,0.72254282]
[1751551152793,1.74905436,110370.0,110360.0,0.12779752]
[1751551152998,1.83625436,110370.0,110360.0,0.11367323]
[1751551153199,1.83625436,110370.0,110360.0,0.12783491]
[1751551154093,3.47688034,110370.0,110360.0,0.12783491]
[1751551154292,3.47688034,110370.0,110350.0,0.36261233]
[1751551154293,0.1811453,110360.0,110350.0,0.36261233]
[1751551154495,1.08795726,110360.0,110350.0,0.41261233]
[1751551154698,1.26918926,110360.0,110350.0,0.41261233]
[1751551154899,1.29259093,110360.0,110350.0,0.41261233]
[1751551155107,1.29259093,110360.0,110350.0,0.36129943]
[1751551155392,1.29259093,110360.0,110350.0,0.32333633]
[1751551155592,1.29259093,110360.0,110350.0,0.27033663]
[1751551155790,1.29259093,110360.0,110350.0,0.20871343]
[1751551155988,1.29259093,110360.0,110350.0,0.15454903]
[1751551156193,1.29259093,110360.0,110350.0,0.11916263]
[1751551156596,1.11135893,110360.0,110350.0,0.05459673]
[1751551156804,0.1811946,110330.0,110320.0,0.0436]
[1751551157003,0.1811946,110330.0,110310.0,0.00181299]
[1751551157004,0.181211,110320.0,110310.0,0.00181299]
[1751551157300,0.1812603,110290.0,110280.0,0.00305067]
[1751551157499,1.71759426,110290.0,110280.0,0.39515067]
[1751551157697,1.32988828,110290.0,110280.0,0.39515067]
[1751551157903,1.80919426,110290.0,110280.0,0.34855067]
[1751551158092,1.83267391,110290.0,110280.0,0.48432737]
[1751551158298,0.66931391,110290.0,110280.0,0.48432737]
[1751551158498,1.83255391,110290.0,110280.0,0.48432737]
[1751551158700,1.35324793,110290.0,110280.0,0.57642737]
[1751551159210,1.35324739,110290.0,110280.0,0.57642737]
[1751551159407,0.26350669,110290.0,110280.0,0.57642737]
[1751551159699,1.26017841,110290.0,110280.0,0.96513335]
[1751551159903,1.44143871,110290.0,110280.0,0.96813335]
[1751551160093,0.09697841,110290.0,110280.0,0.96813335]
[1751551160295,1.44135871,110290.0,110280.0,0.96813335]
[1751551160507,0.09697841,110290.0,110280.0,0.96813335]
[1751551160699,0.38189116,110310.0,110300.0,0.1812439]
[1751551160896,1.52143289,110310.0,110300.0,0.4612439]
[1751551161097,0.31149289,110310.0,110300.0,0.5522439]
[1751551161299,1.47453289,110310.0,110300.0,0.5522439]
[1751551161495,1.47453289,110310.0,110300.0,0.1812439]
[1751551161801,2.01034911,110310.0,110300.0,0.072]
[1751551161999,2.01034911,110310.0,110300.0,0.002]
[1751551162392,2.01034911,110310.0,110300.0,0.282]
[1751551162593,1.62464313,110310.0,110300.0,0.052]
[1751551163106,1.57043289,110310.0,110300.0,0.302]
[1751551163297,1.57047289,110310.0,110300.0,0.3332439]
[1751551163497,1.57047289,110310.0,110300.0,0.152]
[1751551163694,1.64339185,110310.0,110300.0,0.3332439]
[1751551164103,1.64339185,110310.0,110300.0,0.072]
[1751551164407,1.54949185,110310.0,110300.0,0.5032439]
[1751551164602,1.45867415,110310.0,110300.0,0.98604988]
[1751551165503,1.45862505,110310.0,110300.0,0.98604988]
[1751551165700,1.27735755,110310.0,110300.0,0.98604988]
[1751551165900,1.45858495,110310.0,110300.0,0.98604988]
[1751551166106,1.27735755,110310.0,110300.0,0.98604988]
[1751551166307,1.45858495,110310.0,110300.0,0.98604988]
[1751551166694,1.45858495,110310.0,110300.0,0.5983439]
[1751551168000,0.29578495,110310.0,110300.0,0.5983439]
[1751551168203,1.45838495,110310.0,110300.0,0.98604988]
[1751551168403,1.45838495,110310.0,110300.0,0.5983439]
[1751551169507,1.45838495,110310.0,110300.0,0.98604988]
[1751551169709,1.45838495,110310.0,110300.0,1.00020292]
[1751551169902,1.45838495,110310.0,110300.0,0.98604988]
[1751551170205,1.45838495,110310.0,110300.0,0.61249534]
[1751551170413,1.45838495,110310.0,110300.0,1.00020132]
[1751551171215,1.45838495,110310.0,110300.0,1.01375748]
[1751551171404,1.45838495,110310.0,110300.0,0.99960628]
[1751551171709,1.45838495,110310.0,110300.0,0.62606826]
[1751551173012,1.45838495,110310.0,110300.0,1.01377424]
[1751551174805,0.27964809,110310.0,110300.0,1.01377424]
[1751551175606,0.27964809,110310.0,110300.0,0.62606826]
[1751551175907,1.18672809,110310.0,110300.0,0.62606826]
[1751551177710,1.18672809,110310.0,110300.0,1.01377424]
[1751551178206,1.00550069,110310.0,110300.0,0.83253034]
[1751551179311,1.00550069,110310.0,110300.0,0.44482436]
[1751551179510,1.00550069,110310.0,110300.0,0.83253034]
[1751551179911,0.09842069,110310.0,110300.0,1.14253034]
[1751551180112,0.02550173,110310.0,110300.0,1.14253034]
[1751551180313,0.05421024,110330.0,110300.0,1.62860969]
[1751551180509,0.97682277,110340.0,110320.0,0.38770598]
[1751551180711,0.97682277,110340.0,110330.0,0.47880598]
[1751551180911,0.97678277,110340.0,110330.0,0.74880598]
[1751551181106,0.14420289,110340.0,110330.0,0.74880598]
[1751551181810,0.53490887,110340.0,110330.0,0.27]
[1751551182109,0.62580887,110340.0,110330.0,0.2832928]
[1751551182318,0.23810289,110340.0,110330.0,0.2832928]
[1751551182917,0.13107036,110340.0,110330.0,1.10295321]
[1751551183614,0.13107036,110340.0,110330.0,1.08880598]
[1751551183820,0.12807036,110340.0,110330.0,1.08880598]
[1751551184517,0.12807036,110340.0,110330.0,0.7011]
[1751551184714,1.43968642,110340.0,110330.0,0.27]
[1751551184916,0.62414642,110340.0,110330.0,0.31]
[1751551185113,0.23644044,110340.0,110330.0,0.31]
[1751551185314,0.23644044,110340.0,110330.0,0.13]
[1751551185513,0.23644044,110340.0,110330.0,0.26]
[1751551187318,0.23644044,110340.0,110330.0,0.27393847]
[1751551187920,0.23644044,110340.0,110330.0,0.26]
[1751551188120,0.16416012,110340.0,110330.0,0.26]
[1751551190329,0.5518661,110340.0,110330.0,0.26]
[1751551190525,0.5978661,110340.0,110330.0,0.26]
[1751551190822,0.21016012,110340.0,110330.0,0.26]
[1751551192219,0.23313613,110340.0,110330.0,0.26]
[1751551193919,0.15927601,110340.0,110330.0,0.26]
[1751551194126,0.15927601,110340.0,110330.0,0.27397485]
[1751551195330,0.02297601,110340.0,110330.0,0.27396747]
[1751551195624,0.11597601,110340.0,110330.0,0.27396747]
[1751551196019,0.11597601,110340.0,110330.0,0.75487345]
[1751551196214,0.11597601,110340.0,110330.0,0.36716747]
[1751551197030,1.02037601,110340.0,110330.0,0.36716747]
[1751551197223,0.97407601,110340.0,110330.0,0.36716747]
[1751551197721,0.97407601,110340.0,110330.0,0.36715899]
[1751551198026,0.92737601,110340.0,110330.0,0.36715899]
[1751551198822,0.92735302,110340.0,110330.0,0.36715899]
[1751551199129,0.92687302,110340.0,110330.0,0.36715899]
[1751551199726,0.02295302,110340.0,110330.0,0.36715899]
[1751551200028,0.92683302,110340.0,110330.0,0.36715899]
[1751551200231,0.02295302,110340.0,110330.0,0.36715899]
[1751551200831,0.02295302,110340.0,110330.0,1.11486497]
[1751551201018,0.10467793,110360.0,110330.0,1.15986497]
[1751551201222,0.10467793,110360.0,110340.0,0.48260598]
[1751551201223,0.15077793,110360.0,110340.0,0.48260598]
[1751551201422,0.15077793,110360.0,110350.0,0.0912]
[1751551201627,0.92618989,110360.0,110310.0,0.90368]
[1751551201829,0.05422495,110350.0,110320.0,0.47890598]
[1751551202026,0.05622495,110360.0,110340.0,0.38770598]
[1751551202327,0.05622495,110360.0,110350.0,0.0912]
[1751551202535,0.05622495,110360.0,110350.0,0.3612]
[1751551202727,0.05622495,110360.0,110350.0,0.27]
[1751551202920,0.44493093,110360.0,110350.0,0.27]
[1751551203228,0.83263691,110360.0,110340.0,0.01]
[1751551203422,0.44193093,110350.0,110340.0,0.322]
[1751551203632,0.05422495,110350.0,110340.0,0.012]
[1751551203823,0.69425093,110350.0,110340.0,0.012]
[1751551204225,0.48779166,110350.0,110310.0,0.02]
[1751551204427,0.38770598,110320.0,110310.0,0.31]
[1751551204831,0.74134963,110340.0,110310.0,0.31]
[1751551205022,0.9032,110330.0,110310.0,0.69]
[1751551205223,0.48902963,110340.0,110310.0,0.3997]
[1751551205424,1.29086598,110330.0,110310.0,0.3997]
[1751551205619,0.10132365,110340.0,110310.0,0.3997]
[1751551205821,1.29082598,110330.0,110310.0,0.3997]
[1751551206027,0.38770598,110320.0,110310.0,0.31]
[1751551206223,1.29082598,110330.0,110310.0,0.31]
[1751551206427,1.29082598,110330.0,110310.0,0.312]
[1751551206722,0.90312,110330.0,110310.0,0.314]
[1751551207120,1.29082598,110330.0,110310.0,0.314]
[1751551207520,0.90312,110330.0,110310.0,0.70170598]
[1751551207721,0.90312,110330.0,110310.0,0.314]
[1751551207722,1.29082598,110330.0,110310.0,0.314]
[1751551208229,0.90312,110330.0,110310.0,0.314]
[1751551208426,1.29082598,110330.0,110310.0,0.314]
[1751551208628,0.90312,110330.0,110310.0,0.332]
[1751551208832,0.38770598,110320.0,110310.0,0.34338467]
[1751551209026,0.38770598,110320.0,110310.0,0.06538467]
[1751551209435,0.38770598,110320.0,110310.0,0.01538467]
[1751551209633,0.38770598,110320.0,110310.0,0.01338467]
[1751551209828,0.38770598,110320.0,110310.0,0.06338467]
[1751551210033,0.95834365,110330.0,110310.0,0.32338467]
[1751551210229,0.38770598,110320.0,110310.0,0.01338467]
[1751551210436,0.38770598,110320.0,110310.0,0.28338467]
[1751551210622,0.38770598,110320.0,110310.0,0.07338467]
[1751551210934,0.38770598,110320.0,110310.0,0.32338467]
[1751551211130,0.001,110320.0,110310.0,0.14338467]
[1751551211436,1.1562,110320.0,110310.0,0.3]
[1751551211638,0.9038,110320.0,110310.0,0.68770598]
[1751551211934,0.9038,110320.0,110310.0,0.7349]
[1751551212236,0.001,110320.0,110310.0,0.78260598]
[1751551212440,0.001,110320.0,110310.0,0.83130598]
[1751551212625,0.001,110320.0,110310.0,1.17130598]
[1751551213134,0.001,110320.0,110310.0,1.36260197]
[1751551213432,0.9028,110340.0,110310.0,1.36260197]
[1751551213629,0.9028,110340.0,110320.0,0.38770598]
[1751551213630,0.9256949,110340.0,110320.0,0.38770598]
[1751551213835,0.9256549,110340.0,110320.0,1.15160598]
[1751551214031,0.9256549,110340.0,110330.0,0.0939]
[1751551214338,0.9256549,110340.0,110330.0,0.3939]
[1751551214736,0.9256149,110340.0,110330.0,0.3939]
[1751551214939,0.9266149,110340.0,110330.0,0.3939]
[1751551215542,1.09373026,110340.0,110330.0,0.3456]
[1751551215840,1.09673026,110340.0,110330.0,0.33]
[1751551217729,1.48443624,110340.0,110320.0,0.23]
[1751551217934,0.48500598,110330.0,110280.0,0.07870417]
[1751551218135,1.20372,110320.0,110290.0,0.0471]
[1751551218443,0.0488,110310.0,110290.0,0.3852]
[1751551218643,0.90252,110300.0,110290.0,0.3852]
[1751551219039,0.90252,110300.0,110290.0,0.77290598]
[1751551219647,0.90252,110300.0,110290.0,0.77590598]
[1751551219844,0.02291375,110300.0,110290.0,1.12590598]
[1751551220147,0.02291375,110300.0,110290.0,1.11590598]
[1751551220749,0.02291375,110300.0,110290.0,0.633]
[1751551220938,0.02291375,110300.0,110290.0,0.68070598]
[1751551221242,0.0923,110320.0,110290.0,1.28543398]
[1751551221447,1.40532705,110320.0,110300.0,0.0964]
[1751551221650,0.0923,110310.0,110300.0,0.3396]
[1751551221842,0.11518107,110310.0,110300.0,0.29]
[1751551222250,0.02288107,110310.0,110300.0,0.29]
[1751551222448,1.26994107,110320.0,110300.0,0.77410598]
[1751551222651,1.26994107,110320.0,110300.0,0.77510598]
[1751551223050,0.11518107,110320.0,110300.0,1.13510598]
[1751551223257,0.02288107,110320.0,110310.0,0.38770598]
[1751551223441,0.02288107,110320.0,110310.0,1.12530598]
[1751551223648,0.02288107,110320.0,110310.0,1.33660197]
[1751551223843,0.02288107,110320.0,110310.0,1.30660197]
[1751551224647,0.02288107,110320.0,110310.0,1.31660197]
[1751551227056,0.16921536,110340.0,110310.0,1.31660197]
[1751551227355,0.09680597,110340.0,110330.0,0.38770598]
[1751551227558,0.09680597,110340.0,110330.0,0.99770598]
[1751551227751,0.05422365,110350.0,110330.0,1.13070598]
[1751551227957,0.05422365,110350.0,110340.0,0.48070598]
[1751551228257,0.05422365,110350.0,110340.0,1.07070598]
[1751551228653,0.05422365,110350.0,110340.0,0.35853395]
[1751551228850,0.53482963,110350.0,110340.0,0.26]
[1751551229055,0.48060598,110350.0,110340.0,0.26]
[1751551229260,0.1392,110350.0,110340.0,0.26]
[1751551229460,0.52690598,110350.0,110340.0,0.26]
[1751551229960,0.19345088,110350.0,110340.0,0.26]
[1751551230264,0.19745088,110350.0,110340.0,0.26]
[1751551230554,0.58515686,110350.0,110340.0,0.26]
[1751551230856,0.65842085,110350.0,110340.0,0.26]
[1751551231054,0.60416997,110350.0,110340.0,0.26]
[1751551231250,0.60416997,110350.0,110320.0,0.02026796]
[1751551231455,1.04912051,110340.0,110320.0,0.81907394]
[1751551231650,0.14716051,110340.0,110320.0,1.09907394]
[1751551231861,0.0929,110340.0,110330.0,0.091]
[1751551232163,0.0929,110340.0,110330.0,0.421]
[1751551232361,0.14716051,110340.0,110330.0,0.421]
[1751551232563,0.14916051,110340.0,110330.0,0.421]
[1751551234070,0.05626051,110340.0,110330.0,1.13870598]
[1751551234360,0.1275245,110350.0,110330.0,1.18790598]
[1751551234559,0.05426051,110350.0,110340.0,0.47870598]
[1751551234758,0.05426051,110350.0,110340.0,1.17870598]
[1751551234962,0.05426051,110350.0,110340.0,1.16870598]
[1751551235170,0.05426051,110350.0,110340.0,1.35995398]
[1751551235378,0.07265784,110360.0,110340.0,1.54112888]
[1751551235575,0.17920503,110380.0,110350.0,1.77573196]
[1751551235873,0.17920503,110380.0,110370.0,0.38770598]
[1751551235874,0.01657431,110380.0,110370.0,0.38770598]
[1751551236067,0.01657431,110380.0,110370.0,1.10670598]
[1751551236268,0.01295006,110380.0,110370.0,1.10670598]
[1751551236467,0.01295006,110380.0,110370.0,1.31790598]
[1751551236666,0.0998,110400.0,110370.0,2.21954598]
[1751551236869,0.002,110400.0,110390.0,0.38770598]
[1751551237170,0.002,110400.0,110390.0,0.65770598]
[1751551237372,0.002,110400.0,110390.0,0.27]
[1751551237564,0.0998,110400.0,110390.0,0.27]
[1751551237768,0.0998,110400.0,110390.0,1.03770598]
[1751551237975,0.05,110400.0,110390.0,0.70460598]
[1751551238270,0.05,110400.0,110390.0,0.33105692]
[1751551238476,0.0951,110400.0,110390.0,0.33105692]
[1751551239577,0.48580598,110400.0,110390.0,0.01415692]
[1751551239773,0.50822814,110400.0,110390.0,0.32415692]
[1751551239982,2.49690322,110400.0,110360.0,0.01495974]
[1751551240279,0.38770598,110370.0,110360.0,0.05]
[1751551240573,1.41008364,110390.0,110360.0,0.67770598]
[1751551240775,0.0967,110380.0,110370.0,0.38770598]
[1751551240977,0.0967,110380.0,110370.0,0.3]
[1751551240978,0.11919932,110380.0,110370.0,0.3]
[1751551243289,0.0967,110380.0,110370.0,0.3]
[1751551243580,0.0967,110380.0,110370.0,0.3468]
[1751551243776,0.0967,110380.0,110370.0,0.3]
[1751551244283,0.75874633,110380.0,110360.0,0.001]
[1751551244474,0.75874633,110380.0,110360.0,0.271]
[1751551244475,0.48300598,110370.0,110360.0,0.271]
[1751551244675,0.48300598,110370.0,110360.0,0.071]
[1751551244882,0.48300598,110370.0,110330.0,0.00325904]
[1751551245191,0.38770598,110350.0,110330.0,0.29]
[1751551245371,0.0953,110340.0,110330.0,0.29]
[1751551245574,0.08940838,110340.0,110330.0,0.29]
[1751551245776,0.08840838,110340.0,110330.0,0.29]
[1751551246372,0.08840838,110340.0,110330.0,0.296]
[1751551246585,0.16153839,110340.0,110330.0,0.296]
[1751551246987,0.0482,110340.0,110330.0,0.68370598]
[1751551247282,0.045,110350.0,110330.0,1.10150598]
[1751551247481,0.0487,110360.0,110340.0,0.43550598]
[1751551247685,2.80989934,110390.0,110350.0,0.38770598]
[1751551247882,0.045,110370.0,110360.0,0.38770598]
[1751551248183,1.31693336,110390.0,110360.0,0.69550598]
[1751551248384,0.045,110380.0,110360.0,0.74470598]
[1751551248581,0.14103747,110380.0,110360.0,0.3078]
[1751551248777,0.06751612,110380.0,110360.0,0.3078]
[1751551248979,0.045,110370.0,110360.0,0.3078]
[1751551249492,0.045,110370.0,110360.0,0.6188]
[1751551250183,0.045,110370.0,110360.0,0.74500598]
[1751551250686,0.0478,110380.0,110360.0,0.74500598]
[1751551250886,0.0468,110380.0,110370.0,0.43690598]
[1751551251187,0.01639336,110390.0,110370.0,1.08690598]
[1751551251379,0.01639336,110390.0,110380.0,0.0492]
[1751551251579,0.03885434,110390.0,110380.0,0.3392]
[1751551251780,0.03885434,110390.0,110380.0,0.6892]
[1751551252085,0.13235434,110390.0,110380.0,0.35335726]
[1751551252289,0.13335434,110390.0,110380.0,0.68335726]
[1751551252586,0.13335434,110390.0,110380.0,0.35335726]
[1751551252882,0.52006032,110390.0,110380.0,0.30415726]
[1751551253086,0.56746032,110390.0,110380.0,0.30415726]
[1751551253287,0.17975434,110390.0,110380.0,0.30415726]
[1751551253589,0.17975434,110390.0,110380.0,0.01415726]
[1751551253782,0.56746032,110390.0,110380.0,0.33415726]
[1751551253990,0.56746032,110390.0,110380.0,0.33415789]
[1751551254380,0.17975434,110390.0,110380.0,0.33415789]
[1751551254777,0.56746032,110390.0,110380.0,0.33415789]
[1751551254983,0.56746032,110390.0,110380.0,0.33515789]
[1751551255679,0.56746032,110390.0,110380.0,0.01515789]
[1751551255880,0.56746032,110390.0,110380.0,0.301]
[1751551256382,0.54499934,110390.0,110380.0,0.301]
[1751551256577,0.56747965,110390.0,110380.0,0.301]
[1751551257186,0.17977367,110390.0,110380.0,0.301]
[1751551257783,0.17977367,110390.0,110380.0,0.3]
[1751551257981,0.08667367,110390.0,110380.0,0.68770598]
[1751551258186,0.08667367,110390.0,110380.0,1.10460598]
[1751551258588,0.08667367,110390.0,110380.0,0.7169]
[1751551258985,0.08567367,110390.0,110380.0,0.3469]
[1751551259186,0.13507367,110390.0,110380.0,0.7269]
[1751551259386,0.13507367,110390.0,110380.0,0.6969]
[1751551259882,0.52277965,110390.0,110380.0,0.31415707]
[1751551260088,0.13507367,110390.0,110380.0,0.31415707]
[1751551260288,0.13507367,110390.0,110380.0,0.64415707]
[1751551260594,0.08567367,110390.0,110380.0,0.68965707]
[1751551260793,0.08567367,110390.0,110380.0,1.07736305]
[1751551260992,0.08567367,110390.0,110380.0,0.74736305]
[1751551261297,0.08667367,110390.0,110380.0,0.69965707]
[1751551261791,0.08667367,110390.0,110380.0,1.08736292]
[1751551261995,0.08669418,110390.0,110380.0,0.69965694]
[1751551262184,0.08569418,110390.0,110380.0,0.69965694]
[1751551263195,0.11880082,110390.0,110380.0,0.69965694]
[1751551263391,0.002,110400.0,110380.0,1.09736292]
[1751551263580,0.002,110400.0,110390.0,0.48190598]
[1751551263786,0.0516,110400.0,110390.0,0.73225694]
[1751551263987,0.1011,110400.0,110390.0,0.73225694]
[1751551264686,0.1021,110400.0,110390.0,0.73225694]
[1751551265297,0.0526,110400.0,110390.0,1.11996292]
[1751551265492,0.004,110400.0,110390.0,1.16886292]
[1751551266282,0.004,110400.0,110390.0,0.73115694]
[1751551266482,0.004,110400.0,110390.0,1.11886292]
[1751551266995,0.004,110400.0,110390.0,1.12213242]
[1751551267192,0.003,110400.0,110390.0,0.73442644]